[Event "Titled Tuesday Blitz February 15 Late 2022"]
[White "Jacobson, Brandon"]
[Black "Cremisi, Daniel"]
[WhiteFideId "30901561"]
[BlackFideId "2089882"]
[WhiteElo "2362"]
[BlackElo "2172"]
[Result "1-0"]
[Round "01"]
[TimeControl "180+1"]
[Date "2022.02.15"]
[WhiteClock "0:01:25"]
[BlackClock "0:00:42"]

1. d4 {[%clk 0:02:57]}  d5 {[%clk 0:02:59]} 2. c4 {[%clk 0:02:57]}  e6 {[%clk 0:02:59]} 3. Nc3 {[%clk 0:02:57]}  c6 {[%clk 0:02:59]} 4. e4 {[%clk 0:02:54]}  dxe4 {[%clk 0:02:59]} 5. Nxe4 {[%clk 0:02:55]}  Bb4+ {[%clk 0:02:59]} 6. Nc3 {[%clk 0:02:55]}  Nf6 {[%clk 0:02:58]} 7. Nf3 {[%clk 0:02:54]}  O-O {[%clk 0:02:58]} 8. a3 {[%clk 0:02:50]}  Be7 {[%clk 0:02:58]} 9. Bd3 {[%clk 0:02:47]}  b6 {[%clk 0:02:58]} 10. O-O {[%clk 0:02:44]}  Bb7 {[%clk 0:02:58]} 11. Qe2 {[%clk 0:02:44]}  Qc7 {[%clk 0:02:57]} 12. Ne5 {[%clk 0:02:42]}  Nbd7 {[%clk 0:02:57]} 13. Bf4 {[%clk 0:02:42]}  Nxe5 {[%clk 0:02:52]} 14. Bxe5 {[%clk 0:02:33]}  Qd8 {[%clk 0:02:48]} 15. Rad1 {[%clk 0:02:29]}  Nd7 {[%clk 0:02:46]} 16. Bg3 {[%clk 0:02:28]}  Rc8 {[%clk 0:02:40]} 17. c5 {[%clk 0:02:13]}  bxc5 {[%clk 0:02:37]} 18. dxc5 {[%clk 0:02:14]}  Bxc5 {[%clk 0:02:19]} 19. Bb1 {[%clk 0:02:08]}  Qe8 {[%clk 0:01:48]} 20. Ne4 {[%clk 0:02:03]}  f5 {[%clk 0:01:39]} 21. Rxd7 {[%clk 0:02:01]}  Qxd7 {[%clk 0:01:32]} 22. Nxc5 {[%clk 0:02:01]}  Qe7 {[%clk 0:01:27]} 23. Nxe6 {[%clk 0:01:47]}  Rfe8 {[%clk 0:01:00]} 24. Ba2 {[%clk 0:01:47]}  Kh8 {[%clk 0:01:00]} 25. Be5 {[%clk 0:01:47]}  Rg8 {[%clk 0:00:59]} 26. Qh5 {[%clk 0:01:43]}  Qe8 {[%clk 0:00:45]} 27. Qxf5 {[%clk 0:01:29]}  c5 {[%clk 0:00:42]} 28. Ng5 {[%clk 0:01:25]} 1-0


[Site "https://www.chess.com"]

[Event "Titled Tuesday Blitz February 15 Late 2022"]
[White "Jones, Gawain C B"]
[Black "Nilsen, Tobias Lang"]
[WhiteFideId "409561"]
[BlackFideId "1521624"]
[WhiteElo "2844"]
[BlackElo "2464"]
[Result "1-0"]
[Round "01"]
[TimeControl "180+1"]
[Date "2022.02.16"]
[WhiteClock "0:01:41"]
[BlackClock "0:01:28"]

1. Nf3 {[%clk 0:02:59]}  d5 {[%clk 0:02:58]} 2. g3 {[%clk 0:02:58]}  Nc6 {[%clk 0:02:57]} 3. d4 {[%clk 0:02:58]}  Bg4 {[%clk 0:02:57]} 4. Bg2 {[%clk 0:02:58]}  Qd7 {[%clk 0:02:57]} 5. c4 {[%clk 0:02:58]}  dxc4 {[%clk 0:02:54]} 6. Qa4 {[%clk 0:02:52]}  Bxf3 {[%clk 0:02:26]} 7. exf3 {[%clk 0:02:42]}  Qe6+ {[%clk 0:02:14]} 8. Be3 {[%clk 0:02:41]}  O-O-O {[%clk 0:02:13]} 9. Nc3 {[%clk 0:02:36]}  Nf6 {[%clk 0:02:12]} 10. O-O {[%clk 0:02:34]}  Nd5 {[%clk 0:01:54]} 11. Nxd5 {[%clk 0:02:30]}  Qxd5 {[%clk 0:01:54]} 12. f4 {[%clk 0:02:29]}  Qd6 {[%clk 0:01:50]} 13. d5 {[%clk 0:02:27]}  Nb8 {[%clk 0:01:49]} 14. Qxc4 {[%clk 0:02:22]}  a6 {[%clk 0:01:39]} 15. Bc5 {[%clk 0:02:15]}  Qd7 {[%clk 0:01:40]} 16. Rac1 {[%clk 0:02:14]}  e6 {[%clk 0:01:36]} 17. Bb6 {[%clk 0:01:50]}  Bd6 {[%clk 0:01:31]} 18. dxe6 {[%clk 0:01:42]}  Qxe6 {[%clk 0:01:28]} 19. Qxc7+ {[%clk 0:01:41]} 1-0


[Site "https://www.chess.com"]

[Event "Titled Tuesday Blitz February 15 Late 2022"]
[White "Kamsky, Gata"]
[Black "Szalay, Karoly"]
[WhiteFideId "2000024"]
[BlackFideId "2600544"]
[WhiteElo "2839"]
[BlackElo "2462"]
[Result "1-0"]
[Round "01"]
[TimeControl "180+1"]
[Date "2022.02.16"]
[WhiteClock "0:00:14"]
[BlackClock "0:00:15"]

1. e4 {[%clk 0:03:00]}  e5 {[%clk 0:02:59]} 2. Nf3 {[%clk 0:03:00]}  Nc6 {[%clk 0:03:00]} 3. Bb5 {[%clk 0:02:57]}  a6 {[%clk 0:03:00]} 4. Ba4 {[%clk 0:02:57]}  Nf6 {[%clk 0:02:59]} 5. O-O {[%clk 0:02:57]}  b5 {[%clk 0:02:59]} 6. Bb3 {[%clk 0:02:56]}  Bc5 {[%clk 0:03:00]} 7. c3 {[%clk 0:02:55]}  d6 {[%clk 0:03:00]} 8. d4 {[%clk 0:02:55]}  Bb6 {[%clk 0:03:00]} 9. h3 {[%clk 0:02:55]}  O-O {[%clk 0:02:55]} 10. Re1 {[%clk 0:02:52]}  h6 {[%clk 0:02:55]} 11. Be3 {[%clk 0:02:50]}  exd4 {[%clk 0:02:52]} 12. Nxd4 {[%clk 0:02:36]}  Bb7 {[%clk 0:02:51]} 13. Nxc6 {[%clk 0:02:34]}  Bxc6 {[%clk 0:02:44]} 14. Bxb6 {[%clk 0:02:34]}  cxb6 {[%clk 0:02:45]} 15. Nd2 {[%clk 0:02:25]}  Re8 {[%clk 0:02:44]} 16. Bc2 {[%clk 0:02:13]}  Ra7 {[%clk 0:02:24]} 17. Re3 {[%clk 0:01:58]}  Rae7 {[%clk 0:01:36]} 18. Qe2 {[%clk 0:01:56]}  b4 {[%clk 0:01:12]} 19. c4 {[%clk 0:01:44]}  Nd7 {[%clk 0:01:04]} 20. Re1 {[%clk 0:01:41]}  Nc5 {[%clk 0:01:03]} 21. Qg4 {[%clk 0:01:27]}  Re6 {[%clk 0:00:49]} 22. Qf4 {[%clk 0:00:41]}  Rf6 {[%clk 0:00:39]} 23. Qh4 {[%clk 0:00:38]}  Rfe6 {[%clk 0:00:28]} 24. Qxd8 {[%clk 0:00:38]}  Rxd8 {[%clk 0:00:29]} 25. b3 {[%clk 0:00:36]}  a5 {[%clk 0:00:29]} 26. Nf3 {[%clk 0:00:36]}  Bd7 {[%clk 0:00:23]} 27. Nd4 {[%clk 0:00:35]}  Rf6 {[%clk 0:00:23]} 28. h4 {[%clk 0:00:34]}  Re8 {[%clk 0:00:24]} 29. g3 {[%clk 0:00:34]}  g5 {[%clk 0:00:24]} 30. hxg5 {[%clk 0:00:32]}  hxg5 {[%clk 0:00:24]} 31. f3 {[%clk 0:00:32]}  Kg7 {[%clk 0:00:25]} 32. Kg2 {[%clk 0:00:32]}  Rh6 {[%clk 0:00:25]} 33. Rh1 {[%clk 0:00:31]}  Rxh1 {[%clk 0:00:25]} 34. Kxh1 {[%clk 0:00:31]}  f5 {[%clk 0:00:25]} 35. Kg2 {[%clk 0:00:30]}  f4 {[%clk 0:00:24]} 36. Re1 {[%clk 0:00:29]}  Kf6 {[%clk 0:00:23]} 37. Ne2 {[%clk 0:00:27]}  fxg3 {[%clk 0:00:23]} 38. Kxg3 {[%clk 0:00:26]}  Rh8 {[%clk 0:00:22]} 39. Rd1 {[%clk 0:00:26]}  Ke7 {[%clk 0:00:22]} 40. Nd4 {[%clk 0:00:26]}  Rh3+ {[%clk 0:00:22]} 41. Kg2 {[%clk 0:00:26]}  Rh6 {[%clk 0:00:21]} 42. Bb1 {[%clk 0:00:25]}  g4 {[%clk 0:00:21]} 43. f4 {[%clk 0:00:24]}  a4 {[%clk 0:00:22]} 44. Nc2 {[%clk 0:00:22]}  axb3 {[%clk 0:00:21]} 45. axb3 {[%clk 0:00:22]}  Nxb3 {[%clk 0:00:16]} 46. Nxb4 {[%clk 0:00:22]}  Kf7 {[%clk 0:00:16]} 47. Nd5 {[%clk 0:00:22]}  Bc6 {[%clk 0:00:16]} 48. Kg3 {[%clk 0:00:22]}  Nc5 {[%clk 0:00:16]} 49. Kxg4 {[%clk 0:00:22]}  Rh2 {[%clk 0:00:17]} 50. Nxb6 {[%clk 0:00:20]}  Nxe4 {[%clk 0:00:16]} 51. Bxe4 {[%clk 0:00:19]}  Bxe4 {[%clk 0:00:17]} 52. f5 {[%clk 0:00:19]}  Ke7 {[%clk 0:00:15]} 53. Re1 {[%clk 0:00:18]}  Rb2 {[%clk 0:00:14]} 54. Rxe4+ {[%clk 0:00:17]}  Kf7 {[%clk 0:00:14]} 55. Nd5 {[%clk 0:00:17]}  Rc2 {[%clk 0:00:15]} 56. Re7+ {[%clk 0:00:17]}  Kf8 {[%clk 0:00:16]} 57. Rc7 {[%clk 0:00:17]}  Ke8 {[%clk 0:00:15]} 58. f6 {[%clk 0:00:17]}  Kd8 {[%clk 0:00:15]} 59. f7 {[%clk 0:00:17]}  Rg2+ {[%clk 0:00:16]} 60. Kf3 {[%clk 0:00:16]}  Rf2+ {[%clk 0:00:16]} 61. Ke3 {[%clk 0:00:15]}  Re2+ {[%clk 0:00:17]} 62. Kd3 {[%clk 0:00:15]}  Rd2+ {[%clk 0:00:17]} 63. Ke4 {[%clk 0:00:15]}  Rd4+ {[%clk 0:00:17]} 64. Kf5 {[%clk 0:00:14]}  Rf4+ {[%clk 0:00:15]} 65. Nxf4 {[%clk 0:00:14]} 1-0


[Site "https://www.chess.com"]

[Event "Titled Tuesday Blitz February 15 Late 2022"]
[White "Karas, Marek"]
[Black "Grigorov, Grigor"]
[WhiteFideId "14928558"]
[BlackFideId "2907313"]
[WhiteElo "2472"]
[BlackElo "2850"]
[Result "0-1"]
[Round "01"]
[TimeControl "180+1"]
[Date "2022.02.16"]
[WhiteClock "0:00:03"]
[BlackClock "0:00:05"]

1. d4 {[%clk 0:03:00]}  Nf6 {[%clk 0:02:59]} 2. Nf3 {[%clk 0:03:00]}  e6 {[%clk 0:02:59]} 3. Bf4 {[%clk 0:02:59]}  c5 {[%clk 0:02:58]} 4. e3 {[%clk 0:03:00]}  cxd4 {[%clk 0:02:55]} 5. exd4 {[%clk 0:03:00]}  b6 {[%clk 0:02:56]} 6. c3 {[%clk 0:03:00]}  Be7 {[%clk 0:02:55]} 7. Nbd2 {[%clk 0:03:00]}  O-O {[%clk 0:02:55]} 8. Bd3 {[%clk 0:03:01]}  Ba6 {[%clk 0:02:54]} 9. Bxa6 {[%clk 0:03:00]}  Nxa6 {[%clk 0:02:55]} 10. Qe2 {[%clk 0:03:01]}  Nc7 {[%clk 0:02:55]} 11. Bxc7 {[%clk 0:02:56]}  Qxc7 {[%clk 0:02:54]} 12. O-O {[%clk 0:02:57]}  Qb7 {[%clk 0:02:53]} 13. a4 {[%clk 0:02:56]}  a6 {[%clk 0:02:53]} 14. Rfe1 {[%clk 0:02:53]}  b5 {[%clk 0:02:53]} 15. axb5 {[%clk 0:02:54]}  axb5 {[%clk 0:02:53]} 16. Nb3 {[%clk 0:02:52]}  d6 {[%clk 0:02:51]} 17. Nfd2 {[%clk 0:02:49]}  Ra4 {[%clk 0:02:45]} 18. Ne4 {[%clk 0:02:35]}  Nd5 {[%clk 0:02:40]} 19. h3 {[%clk 0:02:18]}  Rfa8 {[%clk 0:02:39]} 20. Rab1 {[%clk 0:02:17]}  Qc6 {[%clk 0:02:36]} 21. Ng3 {[%clk 0:02:10]}  Nf4 {[%clk 0:02:23]} 22. Qe4 {[%clk 0:02:09]}  Qxe4 {[%clk 0:02:22]} 23. Rxe4 {[%clk 0:02:08]}  Nd5 {[%clk 0:02:21]} 24. Ree1 {[%clk 0:02:00]}  g6 {[%clk 0:02:14]} 25. Ra1 {[%clk 0:01:58]}  Ra2 {[%clk 0:02:10]} 26. Rxa2 {[%clk 0:01:49]}  Rxa2 {[%clk 0:02:11]} 27. Rb1 {[%clk 0:01:50]}  f5 {[%clk 0:02:03]} 28. Ne2 {[%clk 0:01:49]}  Bg5 {[%clk 0:02:01]} 29. Nec1 {[%clk 0:01:45]}  Ra8 {[%clk 0:01:56]} 30. Nd3 {[%clk 0:01:45]}  Kf7 {[%clk 0:01:55]} 31. g3 {[%clk 0:01:42]}  Nb6 {[%clk 0:01:48]} 32. f4 {[%clk 0:01:41]}  Bf6 {[%clk 0:01:48]} 33. Ra1 {[%clk 0:01:40]}  Rxa1+ {[%clk 0:01:31]} 34. Nxa1 {[%clk 0:01:41]}  Ke7 {[%clk 0:01:29]} 35. Nc2 {[%clk 0:01:39]}  Kd7 {[%clk 0:01:28]} 36. Kf2 {[%clk 0:01:36]}  h6 {[%clk 0:01:27]} 37. Ke2 {[%clk 0:01:35]}  g5 {[%clk 0:01:27]} 38. Ne3 {[%clk 0:01:34]}  gxf4 {[%clk 0:01:17]} 39. gxf4 {[%clk 0:01:31]}  Bd8 {[%clk 0:01:06]} 40. b3 {[%clk 0:01:28]}  Bf6 {[%clk 0:01:05]} 41. Ne1 {[%clk 0:01:23]}  Kc6 {[%clk 0:01:04]} 42. Kd3 {[%clk 0:01:22]}  Kd7 {[%clk 0:00:54]} 43. Nf3 {[%clk 0:01:20]}  Kc6 {[%clk 0:00:51]} 44. c4 {[%clk 0:01:20]}  bxc4+ {[%clk 0:00:50]} 45. bxc4 {[%clk 0:01:21]}  Kd7 {[%clk 0:00:47]} 46. d5 {[%clk 0:01:19]}  Na4 {[%clk 0:00:47]} 47. dxe6+ {[%clk 0:01:16]}  Kxe6 {[%clk 0:00:48]} 48. Nd5 {[%clk 0:01:15]}  Nb2+ {[%clk 0:00:47]} 49. Ke2 {[%clk 0:01:08]}  Nxc4 {[%clk 0:00:47]} 50. Nc7+ {[%clk 0:01:08]}  Kf7 {[%clk 0:00:47]} 51. Nd5 {[%clk 0:01:01]}  Na5 {[%clk 0:00:37]} 52. Ke3 {[%clk 0:00:54]}  Nc6 {[%clk 0:00:36]} 53. Kd3 {[%clk 0:00:49]}  Bd8 {[%clk 0:00:31]} 54. Ne3 {[%clk 0:00:39]}  Ke6 {[%clk 0:00:29]} 55. Nc2 {[%clk 0:00:33]}  Bb6 {[%clk 0:00:29]} 56. Nd2 {[%clk 0:00:31]}  d5 {[%clk 0:00:27]} 57. Nf3 {[%clk 0:00:30]}  Bc7 {[%clk 0:00:24]} 58. Ncd4+ {[%clk 0:00:29]}  Nxd4 {[%clk 0:00:23]} 59. Nxd4+ {[%clk 0:00:30]}  Kf6 {[%clk 0:00:23]} 60. Ne2 {[%clk 0:00:30]}  Bb6 {[%clk 0:00:24]} 61. Nc3 {[%clk 0:00:27]}  Ke6 {[%clk 0:00:20]} 62. Ne2 {[%clk 0:00:24]}  Bf2 {[%clk 0:00:20]} 63. Nc3 {[%clk 0:00:23]}  Kd6 {[%clk 0:00:20]} 64. Ne2 {[%clk 0:00:22]}  Kc5 {[%clk 0:00:19]} 65. Nc1 {[%clk 0:00:20]}  d4 {[%clk 0:00:18]} 66. Nb3+ {[%clk 0:00:11]}  Kd5 {[%clk 0:00:18]} 67. Nd2 {[%clk 0:00:09]}  Be3 {[%clk 0:00:17]} 68. Nf3 {[%clk 0:00:10]}  h5 {[%clk 0:00:14]} 69. Nh4 {[%clk 0:00:09]}  Ke6 {[%clk 0:00:12]} 70. Nf3 {[%clk 0:00:10]}  Bxf4 {[%clk 0:00:08]} 71. Kxd4 {[%clk 0:00:07]}  Kf6 {[%clk 0:00:08]} 72. Kd5 {[%clk 0:00:07]}  Bb8 {[%clk 0:00:08]} 73. Kd4 {[%clk 0:00:07]}  Ba7+ {[%clk 0:00:09]} 74. Kd5 {[%clk 0:00:07]}  Be3 {[%clk 0:00:08]} 75. Kd6 {[%clk 0:00:06]}  Bf4+ {[%clk 0:00:07]} 76. Kd5 {[%clk 0:00:06]}  Bg3 {[%clk 0:00:08]} 77. Kd4 {[%clk 0:00:06]}  Bb8 {[%clk 0:00:06]} 78. Kd5 {[%clk 0:00:06]}  Ba7 {[%clk 0:00:07]} 79. Kc4 {[%clk 0:00:04]}  Ke6 {[%clk 0:00:07]} 80. Kd3 {[%clk 0:00:04]}  Kd5 {[%clk 0:00:07]} 81. Ke2 {[%clk 0:00:04]}  Ke4 {[%clk 0:00:06]} 82. Nd2+ {[%clk 0:00:03]}  Kf4 {[%clk 0:00:06]} 83. Kf1 {[%clk 0:00:02]}  Kg3 {[%clk 0:00:06]} 84. h4 {[%clk 0:00:02]}  Kxh4 {[%clk 0:00:06]} 85. Kg2 {[%clk 0:00:02]}  Kg4 {[%clk 0:00:06]} 86. Nf3 {[%clk 0:00:02]}  h4 {[%clk 0:00:07]} 87. Nh2+ {[%clk 0:00:03]}  Kf4 {[%clk 0:00:06]} 88. Nf3 {[%clk 0:00:03]}  h3+ {[%clk 0:00:05]} 0-1


[Site "https://www.chess.com"]

[Event "Titled Tuesday Blitz February 15 Late 2022"]
[White "Karttunen, Mika"]
[Black "Burke, Paul"]
[WhiteFideId "502081"]
[BlackFideId "2605767"]
[WhiteElo "2343"]
[BlackElo "1827"]
[Result "1-0"]
[Round "01"]
[TimeControl "180+1"]
[Date "2022.02.16"]
[WhiteClock "0:00:14"]
[BlackClock "0:00:34"]

1. e4 {[%clk 0:03:00]}  e5 {[%clk 0:02:59]} 2. Nf3 {[%clk 0:03:00]}  Nc6 {[%clk 0:02:59]} 3. Bb5 {[%clk 0:02:59]}  f5 {[%clk 0:02:59]} 4. d3 {[%clk 0:02:52]}  Nf6 {[%clk 0:02:58]} 5. O-O {[%clk 0:02:42]}  Be7 {[%clk 0:02:58]} 6. Nc3 {[%clk 0:02:06]}  O-O {[%clk 0:02:57]} 7. Bxc6 {[%clk 0:01:59]}  dxc6 {[%clk 0:02:55]} 8. Nxe5 {[%clk 0:02:00]}  fxe4 {[%clk 0:02:55]} 9. dxe4 {[%clk 0:01:54]}  Qxd1 {[%clk 0:02:48]} 10. Rxd1 {[%clk 0:01:53]}  Bd6 {[%clk 0:02:37]} 11. Nc4 {[%clk 0:01:46]}  Bg4 {[%clk 0:02:31]} 12. f3 {[%clk 0:01:37]}  Bc5+ {[%clk 0:02:29]} 13. Be3 {[%clk 0:01:37]}  Bxe3+ {[%clk 0:02:25]} 14. Nxe3 {[%clk 0:01:36]}  Be6 {[%clk 0:02:25]} 15. Ne2 {[%clk 0:01:24]}  Rad8 {[%clk 0:02:11]} 16. a3 {[%clk 0:01:10]}  c5 {[%clk 0:02:06]} 17. Rxd8 {[%clk 0:01:08]}  Rxd8 {[%clk 0:02:05]} 18. Rd1 {[%clk 0:01:09]}  Rxd1+ {[%clk 0:01:59]} 19. Nxd1 {[%clk 0:01:08]}  b5 {[%clk 0:01:46]} 20. Kf2 {[%clk 0:01:03]}  a5 {[%clk 0:01:46]} 21. Ke3 {[%clk 0:01:03]}  Kf7 {[%clk 0:01:40]} 22. Nf4 {[%clk 0:01:01]}  c6 {[%clk 0:01:35]} 23. Nd3 {[%clk 0:00:59]}  Nd7 {[%clk 0:01:33]} 24. Nf4 {[%clk 0:00:47]}  Ne5 {[%clk 0:01:26]} 25. Nxe6 {[%clk 0:00:44]}  Kxe6 {[%clk 0:01:25]} 26. h3 {[%clk 0:00:45]}  Nc4+ {[%clk 0:01:24]} 27. Kd3 {[%clk 0:00:41]}  Ne5+ {[%clk 0:01:20]} 28. Ke2 {[%clk 0:00:41]}  Ng6 {[%clk 0:01:19]} 29. g3 {[%clk 0:00:41]}  Ne5 {[%clk 0:01:17]} 30. f4 {[%clk 0:00:41]}  Nc4 {[%clk 0:01:17]} 31. Kd3 {[%clk 0:00:40]}  a4 {[%clk 0:01:12]} 32. g4 {[%clk 0:00:38]}  g6 {[%clk 0:01:11]} 33. g5 {[%clk 0:00:37]}  Nd6 {[%clk 0:01:05]} 34. Ne3 {[%clk 0:00:36]}  c4+ {[%clk 0:01:01]} 35. Kd4 {[%clk 0:00:37]}  Nb7 {[%clk 0:01:01]} 36. f5+ {[%clk 0:00:35]}  gxf5 {[%clk 0:01:00]} 37. exf5+ {[%clk 0:00:36]}  Kd6 {[%clk 0:00:58]} 38. h4 {[%clk 0:00:32]}  c5+ {[%clk 0:00:55]} 39. Ke4 {[%clk 0:00:32]}  Nd8 {[%clk 0:00:52]} 40. g6 {[%clk 0:00:29]}  hxg6 {[%clk 0:00:51]} 41. fxg6 {[%clk 0:00:29]}  Ke6 {[%clk 0:00:50]} 42. Ng4 {[%clk 0:00:25]}  Nc6 {[%clk 0:00:47]} 43. c3 {[%clk 0:00:24]}  b4 {[%clk 0:00:46]} 44. h5 {[%clk 0:00:23]}  Ne7 {[%clk 0:00:41]} 45. Ne5 {[%clk 0:00:20]}  Nf5 {[%clk 0:00:38]} 46. Nxc4 {[%clk 0:00:18]}  Ng3+ {[%clk 0:00:38]} 47. Kf4 {[%clk 0:00:19]}  Nxh5+ {[%clk 0:00:38]} 48. Kg5 {[%clk 0:00:19]}  Ng7 {[%clk 0:00:38]} 49. cxb4 {[%clk 0:00:19]}  cxb4 {[%clk 0:00:37]} 50. axb4 {[%clk 0:00:20]}  Kd5 {[%clk 0:00:37]} 51. Nb6+ {[%clk 0:00:20]}  Kc6 {[%clk 0:00:36]} 52. Nxa4 {[%clk 0:00:18]}  Kb5 {[%clk 0:00:36]} 53. Nc3+ {[%clk 0:00:18]}  Kxb4 {[%clk 0:00:36]} 54. Kf6 {[%clk 0:00:16]}  Nh5+ {[%clk 0:00:35]} 55. Kf7 {[%clk 0:00:15]}  Kb3 {[%clk 0:00:35]} 56. Nd1 {[%clk 0:00:15]}  Kc2 {[%clk 0:00:35]} 57. b4 {[%clk 0:00:13]}  Kxd1 {[%clk 0:00:34]} 58. b5 {[%clk 0:00:14]} 1-0


[Site "https://www.chess.com"]

[Event "Titled Tuesday Blitz February 15 Late 2022"]
[White "Khater, Sherif"]
[Black "Yoo, Christopher Woojin"]
[WhiteFideId "2034280"]
[BlackFideId "30909694"]
[WhiteElo "2544"]
[BlackElo "2105"]
[Result "0-1"]
[Round "01"]
[TimeControl "180+1"]
[Date "2022.02.15"]
[WhiteClock "0:01:31"]
[BlackClock "0:00:58"]

1. b3 {[%clk 0:03:00]}  e5 {[%clk 0:02:57]} 2. Bb2 {[%clk 0:02:55]}  Nc6 {[%clk 0:02:57]} 3. e3 {[%clk 0:02:52]}  g6 {[%clk 0:02:49]} 4. Bb5 {[%clk 0:02:45]}  Bg7 {[%clk 0:02:46]} 5. Ne2 {[%clk 0:02:45]}  Nge7 {[%clk 0:02:43]} 6. f4 {[%clk 0:02:43]}  a6 {[%clk 0:02:35]} 7. Bxc6 {[%clk 0:02:43]}  Nxc6 {[%clk 0:02:36]} 8. O-O {[%clk 0:02:40]}  O-O {[%clk 0:02:34]} 9. f5 {[%clk 0:02:40]}  d5 {[%clk 0:02:32]} 10. fxg6 {[%clk 0:02:37]}  hxg6 {[%clk 0:02:31]} 11. h3 {[%clk 0:02:36]}  Be6 {[%clk 0:02:17]} 12. Qe1 {[%clk 0:02:33]}  Re8 {[%clk 0:02:04]} 13. a3 {[%clk 0:02:31]}  d4 {[%clk 0:01:59]} 14. exd4 {[%clk 0:02:25]}  exd4 {[%clk 0:01:59]} 15. Qf2 {[%clk 0:02:25]}  d3 {[%clk 0:01:49]} 16. Bxg7 {[%clk 0:01:59]}  dxe2 {[%clk 0:01:48]} 17. Bf6 {[%clk 0:02:00]}  exf1=R+ {[%clk 0:01:46]} 18. Kxf1 {[%clk 0:02:00]}  Qd5 {[%clk 0:01:39]} 19. Qh4 {[%clk 0:01:58]}  Qh5 {[%clk 0:01:38]} 20. Qxh5 {[%clk 0:01:52]}  gxh5 {[%clk 0:01:38]} 21. Nc3 {[%clk 0:01:53]}  Kh7 {[%clk 0:01:32]} 22. Kg1 {[%clk 0:01:51]}  Rg8 {[%clk 0:01:11]} 23. Rf1 {[%clk 0:01:45]}  Bxh3 {[%clk 0:01:10]} 24. Kh2 {[%clk 0:01:43]}  Be6 {[%clk 0:01:04]} 25. g3 {[%clk 0:01:34]}  Rg4 {[%clk 0:01:03]} 26. d3 {[%clk 0:01:33]}  Rag8 {[%clk 0:01:01]} 27. Ne4 {[%clk 0:01:32]}  Bd5 {[%clk 0:00:59]} 28. Nc5 {[%clk 0:01:30]}  Rxg3 {[%clk 0:00:58]} 29. Rf2 {[%clk 0:01:30]}  Rg2+ {[%clk 0:00:57]} 30. Rxg2 {[%clk 0:01:30]}  Rxg2+ {[%clk 0:00:58]} 31. Kh3 {[%clk 0:01:31]}  Rxc2 {[%clk 0:00:58]} 32. Nd7 {[%clk 0:01:31]}  Be6+ {[%clk 0:00:58]} 0-1


[Site "https://www.chess.com"]

[Event "Titled Tuesday Blitz February 15 Late 2022"]
[White "Khumalo, Keith"]
[Black "Smith, Shreyas"]
[WhiteFideId "14319470"]
[BlackFideId "7400713"]
[WhiteElo "1992"]
[BlackElo "2129"]
[Result "1-0"]
[Round "01"]
[TimeControl "180+1"]
[Date "2022.02.16"]
[WhiteClock "0:02:04"]
[BlackClock "0:00:01"]

1. d4 {[%clk 0:03:00]}  d5 {[%clk 0:02:57]} 2. c4 {[%clk 0:03:01]}  c6 {[%clk 0:02:57]} 3. Nf3 {[%clk 0:03:00]}  Nf6 {[%clk 0:02:56]} 4. Qc2 {[%clk 0:03:01]}  e6 {[%clk 0:02:53]} 5. Nbd2 {[%clk 0:03:00]}  Nbd7 {[%clk 0:02:52]} 6. g3 {[%clk 0:03:01]}  Bb4 {[%clk 0:02:26]} 7. Bg2 {[%clk 0:03:01]}  Ne4 {[%clk 0:02:25]} 8. O-O {[%clk 0:03:00]}  f5 {[%clk 0:02:24]} 9. a3 {[%clk 0:02:58]}  Bd6 {[%clk 0:02:16]} 10. Ne1 {[%clk 0:02:58]}  O-O {[%clk 0:02:13]} 11. Nd3 {[%clk 0:02:59]}  Qe8 {[%clk 0:02:07]} 12. b4 {[%clk 0:02:58]}  Qh5 {[%clk 0:02:03]} 13. Nf3 {[%clk 0:02:57]}  Ndf6 {[%clk 0:02:00]} 14. Bf4 {[%clk 0:02:50]}  g5 {[%clk 0:01:55]} 15. Bxd6 {[%clk 0:02:49]}  Nxd6 {[%clk 0:01:55]} 16. Nfe5 {[%clk 0:02:46]}  Nde4 {[%clk 0:01:47]} 17. f3 {[%clk 0:02:44]}  Nd6 {[%clk 0:01:46]} 18. Rab1 {[%clk 0:02:42]}  Bd7 {[%clk 0:01:22]} 19. Nxd7 {[%clk 0:02:42]}  Nxd7 {[%clk 0:01:22]} 20. cxd5 {[%clk 0:02:40]}  exd5 {[%clk 0:01:21]} 21. Nc5 {[%clk 0:02:36]}  Nb6 {[%clk 0:01:13]} 22. e4 {[%clk 0:02:32]}  Nbc4 {[%clk 0:00:51]} 23. Qd3 {[%clk 0:02:28]}  fxe4 {[%clk 0:00:29]} 24. fxe4 {[%clk 0:02:28]}  g4 {[%clk 0:00:09]} 25. exd5 {[%clk 0:02:22]}  Rae8 {[%clk 0:00:10]} 26. Rxf8+ {[%clk 0:02:19]}  Rxf8 {[%clk 0:00:10]} 27. dxc6 {[%clk 0:02:20]}  bxc6 {[%clk 0:00:09]} 28. Ne6 {[%clk 0:02:17]}  Rf6 {[%clk 0:00:08]} 29. Nf4 {[%clk 0:02:17]}  Qf5 {[%clk 0:00:07]} 30. Qxf5 {[%clk 0:02:16]}  Nxf5 {[%clk 0:00:08]} 31. Rc1 {[%clk 0:02:13]}  Nce3 {[%clk 0:00:07]} 32. Bxc6 {[%clk 0:02:10]}  Nxd4 {[%clk 0:00:07]} 33. Rc3 {[%clk 0:02:00]}  Rxf4 {[%clk 0:00:06]} 34. gxf4 {[%clk 0:01:58]}  Ne2+ {[%clk 0:00:06]} 35. Kf2 {[%clk 0:01:59]}  Nxc3 {[%clk 0:00:06]} 36. Kxe3 {[%clk 0:01:59]}  Nb1 {[%clk 0:00:05]} 37. a4 {[%clk 0:01:59]}  Nc3 {[%clk 0:00:05]} 38. a5 {[%clk 0:01:59]}  Kf7 {[%clk 0:00:04]} 39. Kd3 {[%clk 0:01:59]}  Na2 {[%clk 0:00:03]} 40. Bd5+ {[%clk 0:01:59]}  Kf6 {[%clk 0:00:02]} 41. Bxa2 {[%clk 0:02:00]}  Kf5 {[%clk 0:00:03]} 42. Ke3 {[%clk 0:02:01]}  h5 {[%clk 0:00:02]} 43. Bb1+ {[%clk 0:02:02]}  Kf6 {[%clk 0:00:01]} 44. b5 {[%clk 0:02:03]}  Ke6 {[%clk 0:00:01]} 45. Be4 {[%clk 0:02:03]}  h4 {[%clk 0:00:01]} 46. b6 {[%clk 0:02:03]}  axb6 {[%clk 0:00:01]} 47. a6 {[%clk 0:02:04]} 1-0


[Site "https://www.chess.com"]